bitfinex-derivatives/quotes_BTCF0:USTF0_20250313
["timestamp","ask_amount","ask_price","bid_price","bid_amount"]
[1741887946431,0.4535693,80080.0,80079.0,0.1473]
[1741887946618,0.0624502,80079.0,80063.0,0.1249239]
[1741887946819,0.1249256,80062.0,80054.0,0.1406]
[1741887947025,0.16125686,80062.0,80054.0,0.1406]
[1741887947323,0.16125686,80062.0,80050.0,9.99e-05]
[1741887947524,0.18472277,80062.0,80050.0,9.99e-05]
[1741887947920,0.39568797,80062.0,80050.0,9.99e-05]
[1741887948229,0.01903846,80056.0,80050.0,9.99e-05]
[1741887948526,0.33324043,80055.0,80051.0,0.0624714]
[1741887948715,0.04414043,80054.0,80053.0,0.1249397]
[1741887948916,0.03994333,80054.0,80053.0,0.4349397]
[1741887949133,0.03494333,80054.0,80053.0,0.4449397]
[1741887949433,0.02782625,80054.0,80053.0,0.56985694]
[1741887949631,0.02782625,80054.0,80053.0,0.3849397]
[1741887949821,0.00018726,80070.0,80059.0,0.0624646]
[1741887950017,0.002,80062.0,80061.0,0.1873908]
[1741887950320,0.002,80062.0,80061.0,0.6043908]
[1741887950521,0.00780992,80069.0,80061.0,0.54191646]
[1741887950724,0.1249256,80062.0,80061.0,0.27191646]
[1741887950926,0.1249428,80051.0,80050.0,0.0157661]
[1741887951129,0.1496,80061.0,80050.0,0.0157661]
[1741887951328,0.1249428,80051.0,80050.0,0.13543728]
[1741887951526,0.00781076,80059.0,80050.0,0.0157661]
[1741887951723,0.003,80062.0,80061.0,0.1249272]
[1741887951922,0.13573666,80062.0,80054.0,0.0624687]
[1741887952126,0.00781076,80061.0,80050.0,0.0157661]
[1741887952332,0.00781076,80060.0,80054.0,0.062469]
[1741887952519,0.02992126,80060.0,80055.0,0.147]
[1741887952825,0.124935,80056.0,80055.0,0.147]
[1741887953835,0.14704573,80056.0,80055.0,0.147]
[1741887954026,0.14904573,80056.0,80055.0,0.147]
[1741887954228,0.15004573,80056.0,80055.0,0.147]
[1741887954732,0.15004573,80056.0,80051.0,0.1406]
[1741887954733,0.1249412,80052.0,80051.0,0.1406]
[1741887955631,0.14705193,80052.0,80051.0,0.1406]
[1741887956028,0.1249428,80051.0,80050.0,9.99e-05]
[1741887956219,0.2987,80051.0,80050.0,9.99e-05]
[1741887956423,0.4236428,80051.0,80050.0,9.99e-05]
[1741887956639,0.44575353,80051.0,80050.0,9.99e-05]
[1741887957225,0.44675353,80051.0,80050.0,9.99e-05]
[1741887960231,0.68848,80073.0,80050.0,0.2549444]
[1741887960430,0.45340909,80066.0,80050.0,0.13]
[1741887960628,0.02010909,80065.0,80051.0,0.2872]
[1741887960929,0.062462,80063.0,80055.0,0.1249356]
[1741887961129,0.0624647,80060.0,80056.0,0.2889]
[1741887961334,0.1249334,80057.0,80056.0,0.673835]
[1741887961633,0.1249334,80057.0,80056.0,0.5489]
[1741887961833,0.1484,80058.0,80057.0,0.1249334]
[1741887962032,0.1401,80066.0,80057.0,0.24]
[1741887962235,0.30657632,80065.0,80058.0,0.0624659]
[1741887962426,0.2945,80065.0,80058.0,0.3224659]
[1741887962628,0.1249279,80061.0,80059.0,0.2669296]
[1741887962931,0.1249279,80061.0,80060.0,0.1392]
[1741887963323,0.13700636,80061.0,80060.0,0.1392]
[1741887963526,0.13700636,80061.0,80059.0,0.142]
[1741887963527,0.02468024,80061.0,80059.0,0.142]
[1741887963727,0.1249397,80053.0,80052.0,0.1392]
[1741887963930,0.1249397,80053.0,80052.0,0.6461412]
[1741887964132,0.1249397,80053.0,80052.0,0.142]
[1741887964438,0.01260178,80053.0,80052.0,0.5069412]
[1741887964733,0.01260178,80053.0,80052.0,0.6562412]
[1741887964935,0.01260178,80053.0,80052.0,0.5313]
[1741887965136,0.13754148,80053.0,80052.0,0.142]
[1741887965333,0.14989431,80053.0,80052.0,0.142]
[1741887965734,0.28739431,80053.0,80052.0,0.142]
[1741887966434,0.02695461,80053.0,80052.0,0.2669412]
[1741887966639,0.02695461,80053.0,80052.0,0.2869412]
[1741887966828,0.02795461,80053.0,80052.0,0.162]
[1741887967029,0.15289431,80053.0,80052.0,0.162]
[1741887967432,0.14054148,80053.0,80052.0,0.162]
[1741887967629,0.14054148,80053.0,80052.0,0.2869412]
[1741887967630,0.02799483,80053.0,80052.0,0.2869412]
[1741887967931,0.01560178,80053.0,80052.0,0.4245412]
[1741887969142,0.14054148,80053.0,80052.0,0.172]
[1741887969330,0.14054148,80053.0,80052.0,0.142]
[1741887969936,0.15259552,80053.0,80040.0,0.16537329]
[1741887970141,0.1249475,80048.0,80047.0,0.144]
[1741887970341,0.13754928,80048.0,80047.0,0.364]
[1741887970541,0.13754928,80048.0,80047.0,0.144]
[1741887970729,0.15007322,80048.0,80040.0,0.04570211]
[1741887971039,0.1249522,80045.0,80044.0,1.0]
[1741887971337,0.13747614,80045.0,80044.0,1.0]
[1741887971729,0.15849718,80045.0,80044.0,1.0]
[1741887971928,0.19189878,80045.0,80044.0,1.0]
[1741887972440,0.06694658,80045.0,80016.0,0.0631382]
[1741887972629,0.1249881,80022.0,80021.0,0.1432]
[1741887972830,0.13762355,80022.0,80021.0,0.1432]
[1741887973140,0.15784946,80022.0,80021.0,0.1432]
[1741887973437,0.1249959,80017.0,80016.0,0.29883807]
[1741887973638,0.1578387,80017.0,80016.0,0.29883807]
[1741887973942,0.1578387,80017.0,80016.0,0.42383557]
[1741887973943,0.04603705,80017.0,80016.0,0.42383557]
[1741887974137,0.04603705,80017.0,80016.0,0.48383557]
[1741887974344,0.0334016,80017.0,80016.0,0.67383557]
[1741887974636,0.1583975,80017.0,80016.0,0.29883807]
[1741887974843,0.1249959,80017.0,80016.0,0.29883807]
[1741887975141,0.1370764,80017.0,80016.0,0.29883807]
[1741887975637,0.03347342,80017.0,80016.0,0.29883807]
[1741887976027,0.32397342,80017.0,80016.0,0.29883807]
[1741887976337,0.42837029,80017.0,80016.0,0.29883807]
[1741887976638,0.44061435,80017.0,80016.0,0.29883807]
[1741887977437,0.46090667,80017.0,80016.0,0.29883807]
[1741887977643,0.46090667,80017.0,80010.0,0.15204248]
[1741887977644,0.1250053,80011.0,80010.0,0.15204248]
[1741887978039,0.1250053,80011.0,80010.0,4.248e-05]
[1741887978541,0.32306671,80011.0,80010.0,4.248e-05]
[1741887978731,0.44807201,80011.0,80010.0,4.248e-05]
[1741887978929,0.33527786,80011.0,80010.0,4.248e-05]
[1741887979129,0.03316671,80011.0,80010.0,0.37504928]
[1741887979335,0.1249898,80021.0,80010.0,0.37502607]
[1741887979638,0.1482,80024.0,80023.0,0.1249865]
[1741887979940,0.18318685,80035.0,80033.0,0.1249709]
[1741887980130,0.30815465,80035.0,80034.0,0.1521]
[1741887980937,0.1249887,80022.0,80018.0,0.1249931]
[1741887981134,0.1249975,80016.0,80015.0,0.2472]
[1741887981339,0.1249975,80016.0,80015.0,0.26302252]
[1741887981639,0.0624854,80033.0,80017.0,0.0624979]
[1741887981831,0.1396,80032.0,80022.0,0.1249874]
[1741887982030,0.2878,80032.0,80023.0,0.1489]
[1741887982245,0.2878,80032.0,80023.0,0.3589]
[1741887982545,0.14637926,80047.0,80035.0,0.1249674]
[1741887982735,0.1249638,80038.0,80036.0,0.1489]
[1741887982932,0.1396,80037.0,80036.0,0.1489]
[1741887983135,0.2645647,80037.0,80036.0,0.1489]
[1741887983531,0.2020826,80037.0,80029.0,0.1249756]
[1741887983732,0.2020826,80037.0,80030.0,0.1493]
[1741887983733,0.124974,80031.0,80030.0,0.1493]
[1741887984541,0.1249975,80016.0,80015.0,0.01582252]
[1741887984750,0.1249975,80016.0,80015.0,0.27]
[1741887985241,0.1445,80031.0,80012.0,0.1493]
[1741887985242,0.1250021,80013.0,80012.0,0.1493]
[1741887985748,0.1240021,80013.0,80012.0,0.1493]
[1741887986247,0.1250037,80012.0,80011.0,0.00187481]
[1741887986443,0.1250053,80011.0,80010.0,4.248e-05]
[1741887986637,0.28270851,80011.0,80010.0,4.248e-05]
[1741887986948,0.2706053,80011.0,80010.0,4.248e-05]
[1741887987239,0.148,80012.0,80010.0,0.14474248]
[1741887987639,0.1456,80011.0,80010.0,0.14474248]
[1741887987834,0.2706053,80011.0,80010.0,0.14474248]
[1741887988041,0.4202053,80011.0,80010.0,0.14474248]
[1741887988547,0.1250053,80011.0,80010.0,0.14474248]
[1741887989047,0.2886,80019.0,80016.0,0.1249962]
[1741887989346,0.2886,80019.0,80010.0,0.35474248]
[1741887989347,0.2886,80019.0,80017.0,0.2696946]
[1741887989546,0.2886,80019.0,80018.0,0.1249943]
[1741887989752,0.1249943,80018.0,80017.0,0.1447]
[1741887990247,0.4101943,80018.0,80017.0,0.1447]
[1741887990741,0.1250053,80011.0,80010.0,4.248e-05]
[1741887990941,0.1250053,80011.0,80010.0,0.15364248]
[1741887991541,0.4251053,80011.0,80010.0,0.15364248]
[1741887991943,0.45723733,80011.0,80010.0,0.15364248]
[1741887992447,0.01235847,80011.0,80010.0,0.27864928]
[1741887992749,0.01235847,80011.0,80010.0,0.34864928]
[1741887992943,0.20886756,80030.0,80010.0,0.23364248]
[1741887992944,0.14637926,80030.0,80010.0,0.23364248]
[1741887993139,0.0008,80037.0,80010.0,0.23364248]
[1741887993140,0.1539,80026.0,80012.0,0.0625014]
[1741887993339,0.1413,80025.0,80018.0,0.11967118]
[1741887993544,0.1413,80025.0,80013.0,0.1396]
[1741887993745,0.1250006,80014.0,80013.0,0.1396]
[1741887993949,0.1250006,80014.0,80010.0,0.11971366]
[1741887994143,0.1250053,80011.0,80010.0,4.248e-05]
[1741887994343,0.1250193,80002.0,80001.0,0.1401]
[1741887994554,0.1250193,80002.0,80001.0,0.3801]
[1741887994754,0.1250193,80002.0,80001.0,0.1401]
[1741887994938,0.1250209,80001.0,80000.0,0.1]
[1741887995249,0.01263164,80001.0,80000.0,0.1]
[1741887995454,0.062505,80008.0,80000.0,0.1]
[1741887995647,0.0625081,80004.0,80001.0,0.1401]
[1741887995948,0.1260193,80002.0,80001.0,0.1401]
[1741887996148,0.13865371,80002.0,80001.0,0.1401]
[1741887996347,0.43245371,80002.0,80001.0,0.1401]
[1741887996555,0.43345371,80002.0,80001.0,0.1401]
[1741887996850,0.03491925,80002.0,80001.0,0.5251209]
[1741887997946,0.002,80004.0,80001.0,0.4001]
[1741887998146,0.1270193,80002.0,80001.0,0.5251209]
[1741887998346,0.002,80002.0,80001.0,0.5251209]
[1741887998545,0.2866,80003.0,80001.0,0.5251209]
[1741887998857,0.001,80002.0,80001.0,0.4001]
[1741887999051,0.31134853,80002.0,80001.0,0.4001]
[1741887999360,0.4373678,80002.0,80001.0,0.5251209]
[1741887999655,0.01815691,80002.0,80001.0,0.5251209]
[1741887999844,0.01515691,80002.0,80001.0,0.5251209]
[1741888000041,0.03648462,80002.0,80001.0,0.4001]
[1741888000246,0.1828352,80002.0,80001.0,0.1401]
[1741888000451,0.4731352,80002.0,80001.0,0.1401]
[1741888000653,0.48095157,80002.0,80001.0,0.1401]
[1741888000851,0.48095157,80002.0,80001.0,0.1601]
[1741888001451,0.47895157,80002.0,80001.0,0.1601]
[1741888001652,0.1250209,80001.0,80000.0,0.1]
[1741888001853,0.16732587,80001.0,80000.0,0.1]
[1741888002057,0.125035,79992.0,79991.0,0.01569931]
[1741888002258,0.07618953,79992.0,79980.0,0.0091434]
[1741888002556,0.0625211,79988.0,79980.0,0.0091434]
[1741888002755,0.38952337,79991.0,79980.0,0.0091434]
[1741888002756,0.32700497,79987.0,79981.0,0.1425]
[1741888002947,0.125049,79983.0,79980.0,0.0091434]
[1741888003149,0.16735397,79983.0,79980.0,0.0091434]
[1741888003347,0.19649805,79983.0,79980.0,0.0091434]
[1741888003847,0.07144905,79983.0,79980.0,0.0091434]
[1741888004046,0.21124905,79983.0,79982.0,0.21325472]
[1741888004251,0.20343227,79983.0,79982.0,0.01820412]
[1741888004461,0.3475442,79983.0,79982.0,0.01820412]
[1741888005050,0.34027086,79983.0,79982.0,0.01820412]
[1741888005255,0.32120793,79983.0,79982.0,0.01820412]
[1741888005453,0.1250522,79981.0,79980.0,2e-08]
[1741888005648,0.062528,79979.0,79956.0,0.1487]
[1741888005850,0.31895781,79978.0,79957.0,0.1537]
[1741888006052,0.26517215,79970.0,79957.0,0.1937]
[1741888006252,0.1250881,79958.0,79957.0,0.04]
[1741888006454,0.1250959,79953.0,79952.0,0.29883807]
[1741888006759,0.01315691,79953.0,79952.0,0.49393557]
[1741888006972,0.01902914,79963.0,79953.0,0.0625479]
[1741888007153,0.31997992,79962.0,79953.0,0.3297]
[1741888007348,0.0625425,79960.0,79953.0,0.3297]
[1741888007548,0.02216187,79959.0,79958.0,0.1250881]
[1741888007754,0.04320202,79962.0,79960.0,0.125085]
[1741888007953,0.1531,79965.0,79964.0,0.1250787]
[1741888008153,0.01902914,79971.0,79970.0,0.1250694]
[1741888008360,0.01902914,79971.0,79957.0,0.0625444]
[1741888008361,0.1250756,79966.0,79965.0,0.2972]
[1741888008759,0.1250959,79953.0,79952.0,0.29883807]
[1741888009156,0.02328163,79953.0,79952.0,0.29883807]
[1741888009368,0.19394117,79953.0,79952.0,0.29883807]
[1741888009571,0.47484117,79953.0,79952.0,0.29883807]
[1741888010162,0.06907508,79953.0,79952.0,0.29883807]
[1741888010368,0.06907508,79953.0,79952.0,0.2850975]
[1741888010551,0.14637926,79972.0,79965.0,0.1250772]
[1741888010753,0.14637926,79972.0,79971.0,0.1250678]
[1741888010960,0.14637926,79972.0,79971.0,0.4250678]
[1741888011155,0.1250106,80008.0,79978.0,0.1250568]
[1741888011362,0.1416,79993.0,79982.0,0.0625253]
[1741888011565,0.1416,79993.0,79985.0,0.1250459]
[1741888011766,0.1416,79993.0,79985.0,0.3550459]
[1741888011961,0.1250475,79984.0,79983.0,0.2997]
[1741888012157,0.2913,79985.0,79983.0,0.2997]
[1741888012562,0.2913,79985.0,79976.0,0.00958145]
[1741888012563,0.1250584,79977.0,79976.0,0.00958145]
[1741888012963,0.1250756,79966.0,79965.0,0.1507]
[1741888013362,0.0625405,79963.0,79956.0,0.2961]
[1741888013558,0.1497,79962.0,79957.0,0.1250887]
[1741888013763,0.0625319,79974.0,79962.0,0.125081]
[1741888013959,0.1250787,79964.0,79963.0,0.1419]
[1741888014160,0.1250866,79959.0,79958.0,0.1454]
[1741888014963,0.4063866,79959.0,79958.0,0.1454]
[1741888016569,0.01903767,79973.0,79958.0,0.2054]
[1741888016767,0.02129294,79968.0,79967.0,0.125074]
[1741888016975,0.152,79968.0,79965.0,0.1250769]
[1741888017175,0.00187663,79975.0,79966.0,0.5758]
[1741888017375,0.00187663,79975.0,79974.0,0.1250631]
[1741888017671,0.00187663,79975.0,79974.0,0.3550631]
[1741888017977,0.152,79987.0,79986.0,0.1250443]
[1741888018171,0.01903767,79989.0,79974.0,0.13995056]
[1741888018374,0.2145224,79986.0,79979.0,0.1457]
[1741888018562,0.125053,79981.0,79980.0,0.1417]
[1741888018873,0.01903767,79989.0,79980.0,0.1417]
[1741888018874,0.00781788,79987.0,79981.0,0.0625261]
[1741888019176,0.00781788,79987.0,79986.0,0.1250443]
[1741888019378,0.00781788,79987.0,79985.0,0.292]
[1741888019676,0.1527,79986.0,79985.0,0.292]
[1741888019978,0.1527,79986.0,79985.0,0.4170459]
[1741888020579,0.1527,79986.0,79985.0,0.292]
[1741888020774,0.00187623,79999.0,79985.0,0.292]
[1741888020979,0.31584212,79996.0,79995.0,0.1250303]
[1741888021272,0.00187623,79999.0,79998.0,0.1250256]
[1741888021472,0.00187623,79999.0,79998.0,0.1950256]
[1741888022379,0.00781588,80011.0,80010.0,0.1250068]
[1741888022578,0.02048389,80011.0,80010.0,0.1450068]
[1741888022778,0.22002433,80016.0,80015.0,0.124999]
[1741888022974,0.22002433,80016.0,80015.0,0.204999]
[1741888023166,0.0624849,80034.0,80015.0,0.204999]
[1741888023167,0.01903767,80031.0,80015.0,0.47]
[1741888023378,0.00187478,80046.0,80015.0,0.47]
[1741888023379,0.00187478,80046.0,80045.0,0.1249522]
[1741888023677,0.25648404,80052.0,80051.0,0.1249428]
[1741888023978,0.36368777,80079.0,80051.0,0.1249428]
[1741888023979,0.00187416,80073.0,80060.0,0.1249288]
[1741888024278,0.00187416,80073.0,80065.0,0.0624604]
[1741888024577,0.00187416,80073.0,80065.0,0.07]
[1741888024882,0.1391,80072.0,80065.0,0.07]
[1741888025088,0.1391,80072.0,80067.0,0.1249172]
[1741888025378,0.00187416,80073.0,80060.0,0.28304]
[1741888025568,0.1249272,80061.0,80060.0,0.57304]
[1741888025764,0.1391,80071.0,80060.0,0.57304]
[1741888025966,0.153,80070.0,80060.0,0.57304]
[1741888026167,0.1249237,80064.0,80060.0,0.57304]
[1741888026370,0.1437,80063.0,80060.0,0.6979681]
[1741888026571,0.1249272,80061.0,80060.0,0.29]
[1741888026772,0.1249319,80058.0,80057.0,0.28128]
[1741888026973,0.1391,80060.0,80054.0,1.09024]
[1741888027168,0.1249366,80055.0,80054.0,1.08952]
[1741888027877,0.0624693,80054.0,80042.0,0.2834]
[1741888028079,0.1249521,80046.0,80042.0,0.3034]
[1741888028279,0.1437,80053.0,80031.0,0.28332]
[1741888028280,0.2963,80053.0,80031.0,0.28332]
[1741888028478,0.1249725,80032.0,80031.0,0.07]
[1741888028671,0.1249818,80026.0,80024.0,0.28332]
[1741888028876,0.1249818,80026.0,80023.0,1.0898]
[1741888029073,0.1249818,80026.0,80023.0,0.00064]
[1741888029274,0.13703375,80026.0,80013.0,0.28308]
[1741888029492,0.28963375,80026.0,80013.0,0.28308]
[1741888029685,0.1250045,80012.0,80010.0,0.28352]
[1741888029884,0.301,80011.0,80010.0,0.30352]
[1741888030188,0.6876,80039.0,80030.0,0.1249756]
[1741888030189,0.0624817,80038.0,80030.0,0.1249756]
[1741888030373,0.1249811,80027.0,80020.0,0.32762735]
[1741888030574,0.2775825,80026.0,80020.0,0.12499]
[1741888030775,0.1484,80030.0,80011.0,0.12498281]
[1741888030985,0.002,80026.0,80019.0,0.20263735]
[1741888031182,0.002,80026.0,80019.0,0.1249923]
[1741888031373,0.0624755,80046.0,80019.0,0.22]
[1741888031581,0.12497,80034.0,80027.0,0.1249788]
[1741888031784,0.1249547,80044.0,80036.0,0.1249661]
[1741888031979,0.1249547,80044.0,80020.0,0.20363735]
[1741888031980,0.1466,80043.0,80020.0,0.12496407]
[1741888032281,0.1466,80043.0,80020.0,0.44263735]
[1741888032483,0.1249699,80034.0,80026.0,0.1249815]
[1741888032686,0.1249736,80032.0,80026.0,0.1249815]
[1741888032883,0.1466,80031.0,80020.0,0.20263735]
[1741888033084,0.1249912,80020.0,80019.0,0.004]
[1741888033276,0.1249912,80020.0,80019.0,0.28604]
[1741888033477,0.1249912,80020.0,80019.0,0.004]
[1741888033677,0.1466,80021.0,80019.0,0.002]
[1741888033972,0.1466,80021.0,79993.0,0.281]
[1741888034175,0.0625044,80009.0,80002.0,0.1421]
[1741888034386,0.1534,80008.0,80003.0,0.1250175]
[1741888034575,0.001,80020.0,80014.0,0.1249995]
[1741888034770,0.001,80020.0,80013.0,0.1250008]
[1741888034975,0.1544,80020.0,80014.0,0.1421]
[1741888035181,0.1429,80019.0,80014.0,0.1421]
[1741888035387,0.1249953,80018.0,80015.0,0.1483]
[1741888035588,0.1534,80018.0,80015.0,0.1483]
[1741888035780,0.1534,80018.0,80000.0,0.26514835]
[1741888035986,0.1250031,80013.0,80006.0,0.2671117]
[1741888036191,0.2939,80012.0,80006.0,0.4221]
[1741888036383,0.001,80019.0,80006.0,0.4221]
[1741888036577,0.001,80019.0,80018.0,0.1249943]
[1741888036887,0.001,80019.0,80016.0,0.2904]
[1741888037080,0.001,80019.0,80017.0,0.1249959]
[1741888037081,0.1408,80018.0,80017.0,0.1249959]
[1741888037276,0.001,80019.0,80017.0,0.4161959]
[1741888037581,1.5,80082.0,80017.0,0.4161959]
[1741888037582,0.124966,80037.0,80019.0,0.0624957]
[1741888037781,0.1405,80045.0,80027.0,0.20263735]
[1741888038085,0.6876,80076.0,80048.0,0.1249475]
[1741888038385,0.2813,80067.0,80066.0,0.1249194]
[1741888038585,0.1408,80067.0,80066.0,0.1249194]
[1741888039087,0.1472,80075.0,80066.0,0.1249194]
[1741888039088,0.1249109,80072.0,80066.0,0.1249194]
[1741888039285,0.1408,80072.0,80067.0,0.267817]
[1741888039582,0.1408,80072.0,80071.0,0.1249116]
[1741888039785,0.0643199,80084.0,80071.0,0.1249116]
[1741888039786,0.01537346,80084.0,80077.0,0.1249022]
[1741888039986,0.2885,80096.0,80088.0,0.0624425]
[1741888040180,0.1248751,80095.0,80089.0,0.2874]
[1741888040385,0.2885,80096.0,80083.0,0.27628]
[1741888040386,0.3509365,80096.0,80083.0,0.27628]
[1741888040586,0.1248913,80084.0,80083.0,0.27628]
[1741888041181,0.6876,80109.0,80083.0,0.43628]
[1741888041485,0.1413,80098.0,80084.0,0.2874]
[1741888041788,0.1248898,80085.0,80084.0,0.3074]
[1741888041978,0.0624386,80093.0,80084.0,0.3074]
[1741888042183,0.1413,80086.0,80084.0,0.3074]
[1741888042375,0.1248898,80085.0,80084.0,0.3074]
[1741888042578,0.1413,80086.0,80084.0,0.3074]
[1741888042890,0.68848,80109.0,80084.0,0.4274]
[1741888043090,0.0624226,80114.0,80090.0,0.35604745]
[1741888043277,0.003,80098.0,80091.0,0.2951]
[1741888043476,0.003,80098.0,80091.0,0.3351]
[1741888043477,0.1248788,80092.0,80091.0,0.3351]
[1741888043782,0.2859,80097.0,80091.0,0.04]
[1741888044087,0.1248764,80094.0,80091.0,0.04]
[1741888044276,0.2859,80093.0,80092.0,0.1459]
[1741888044479,0.003,80098.0,80097.0,0.124871]
[1741888044899,0.007,80098.0,80097.0,0.124871]
[1741888045195,0.007,80098.0,80097.0,0.14027623]
[1741888045488,0.1248389,80118.0,80109.0,0.1248521]
[1741888045689,0.0624109,80129.0,80110.0,0.3003]
[1741888045690,0.1248412,80117.0,80110.0,0.3003]
[1741888045886,0.2961,80120.0,80110.0,0.3403]
[1741888046081,0.1451,80112.0,80110.0,0.3403]
[1741888046283,0.1451,80112.0,80111.0,0.1248492]
[1741888046487,0.1515,80120.0,80112.0,0.1248477]
[1741888046689,0.124842,80116.0,80112.0,0.188]
[1741888046880,0.12671951,80113.0,80112.0,0.188]
[1741888047882,0.12671951,80113.0,80112.0,0.04]
[1741888048390,0.1248555,80107.0,80106.0,0.27404]
[1741888048591,0.0624267,80109.0,80102.0,0.00064]
[1741888048592,0.1248617,80103.0,80102.0,0.00064]
[1741888048797,0.1248773,80093.0,80085.0,8.79e-05]
[1741888049482,0.1248773,80093.0,80087.0,0.1248865]
[1741888049684,0.2959,80094.0,80093.0,0.1248773]
[1741888049879,0.00018726,80101.0,80093.0,0.1495]
[1741888050090,0.1526,80100.0,80093.0,0.1495]
[1741888050397,0.1248741,80096.0,80093.0,0.1495]
[1741888050587,0.2979,80095.0,80093.0,0.1495]
[1741888050897,0.2979,80095.0,80094.0,0.1526]
[1741888051283,0.2979,80095.0,80093.0,0.1495]
[1741888051599,0.1248757,80094.0,80093.0,0.1495]
[1741888052092,0.4112757,80094.0,80093.0,0.1495]
[1741888052692,0.2864,80094.0,80093.0,0.2743773]
[1741888052894,0.002,80095.0,80094.0,0.1248757]
[1741888053091,0.004,80095.0,80094.0,0.2910757]
[1741888053292,0.004,80095.0,80094.0,0.4117757]
[1741888053490,0.002,80095.0,80094.0,0.4117757]
[1741888053690,0.00187341,80113.0,80094.0,0.62175407]
[1741888053990,0.00187341,80113.0,80100.0,0.1248664]
[1741888053991,0.1248555,80107.0,80100.0,0.1248664]
[1741888054197,0.00187341,80113.0,80100.0,0.4031464]
[1741888054397,0.1411,80109.0,80100.0,0.4031464]
[1741888054591,0.1411,80109.0,80100.0,0.5469464]
[1741888054792,0.00118726,80101.0,80100.0,0.1438]
[1741888054989,0.00118726,80101.0,80100.0,0.29]
[1741888055197,0.00118726,80101.0,80100.0,0.4148664]
[1741888055396,0.00518726,80101.0,80100.0,0.4148664]
[1741888056201,0.00518726,80101.0,80100.0,0.60970956]
[1741888056398,0.00518726,80101.0,80100.0,0.68170956]
[1741888056602,0.00518726,80101.0,80100.0,0.74170956]
[1741888057186,0.00518726,80101.0,80100.0,0.6168664]
[1741888057400,0.00518726,80101.0,80100.0,0.35]
[1741888057597,0.00518726,80101.0,80100.0,0.4748664]
[1741888060293,0.00418726,80101.0,80100.0,0.4748664]
[1741888060499,0.00618726,80101.0,80100.0,0.4748664]
[1741888061992,0.06428044,80133.0,80100.0,0.47484316]
[1741888062192,0.1398,80115.0,80114.0,0.1248445]
[1741888062400,0.1398,80115.0,80113.0,0.2995]
[1741888062588,0.1398,80115.0,80109.0,0.1248518]
[1741888062790,0.139,80114.0,80113.0,0.1248461]
[1741888063692,0.1398,80115.0,80113.0,0.1248461]
[1741888063693,0.003,80115.0,80114.0,0.1248445]
[1741888063901,0.00018726,80122.0,80121.0,0.1248336]
[1741888065197,0.00018726,80122.0,80119.0,0.0624176]
[1741888065506,0.0624168,80121.0,80116.0,0.26008]
[1741888065800,0.139,80120.0,80119.0,0.1248368]
[1741888066202,0.00018726,80122.0,80116.0,0.26008]
[1741888066392,0.00018726,80122.0,80121.0,0.1248336]
[1741888066597,0.00018726,80122.0,80116.0,0.26008]
[1741888066598,0.1248399,80117.0,80116.0,0.26008]
[1741888067401,0.139,80119.0,80118.0,0.1248383]
[1741888067606,0.1486,80131.0,80129.0,0.1248199]
[1741888067801,0.2961,80131.0,80130.0,0.1248196]
[1741888068303,0.00084,80139.0,80138.0,0.1248072]
[1741888068603,0.1486,80144.0,80138.0,0.04]
[1741888068802,0.1248029,80141.0,80138.0,0.1648067]
[1741888069004,0.141,80140.0,80138.0,0.2896126]
[1741888069199,0.1248056,80139.0,80138.0,0.04]
[1741888069693,0.13917079,80139.0,80138.0,0.04]
[1741888070001,0.141,80140.0,80139.0,0.1248056]
[1741888070207,0.141,80140.0,80139.0,0.1648056]
[1741888070410,0.141,80140.0,80139.0,0.04]
[1741888070597,0.265804,80140.0,80139.0,0.04]
[1741888070800,0.28015332,80140.0,80139.0,0.04]
[1741888071506,0.23575332,80140.0,80139.0,0.04]
[1741888071817,0.00018726,80147.0,80139.0,0.04]
[1741888072104,0.01439858,80146.0,80145.0,0.1247961]
[1741888072305,0.00018726,80147.0,80146.0,0.1247947]
[1741888072800,0.00018726,80147.0,80137.0,0.20193218]
[1741888073006,0.1248019,80142.0,80141.0,0.1248019]
[1741888073205,0.1248019,80142.0,80141.0,0.04]
[1741888073593,0.1248115,80136.0,80135.0,0.1248099]
[1741888073797,0.0624041,80138.0,80135.0,0.1248099]
[1741888074099,0.00018726,80147.0,80136.0,0.1248103]
[1741888074100,0.2694087,80137.0,80136.0,0.1248103]
[1741888074294,0.1446,80137.0,80133.0,0.0624074]
[1741888074511,0.1248134,80134.0,80133.0,0.02]
[1741888074706,0.1248181,80131.0,80130.0,0.00018726]
[1741888077704,0.1248181,80131.0,80130.0,6e-08]
[1741888077909,0.9624181,80131.0,80130.0,6e-08]
[1741888078104,1.27374784,80131.0,80130.0,6e-08]
[1741888078310,1.31494295,80131.0,80130.0,6e-08]
[1741888078507,1.29965746,80131.0,80130.0,6e-08]
[1741888078902,0.0624179,80120.0,80099.0,0.0624336]
[1741888079096,0.1248523,80109.0,80092.0,0.1248787]
[1741888079411,0.1248523,80109.0,80108.0,0.26378287]
[1741888080003,0.4082523,80109.0,80108.0,0.26378287]
[1741888080407,0.00018726,80117.0,80114.0,0.124843]
[1741888080408,0.1248435,80115.0,80114.0,0.124843]
[1741888080606,0.1248435,80115.0,80112.0,0.1386]
[1741888080806,0.12502836,80117.0,80116.0,0.1248414]
[1741888081010,0.00018726,80117.0,80112.0,0.1386]
[1741888081203,0.1248461,80113.0,80112.0,0.1386]
[1741888081401,0.00018726,80117.0,80105.0,0.24792]
[1741888081702,0.00018726,80117.0,80116.0,0.1248414]
[1741888082097,0.1397,80131.0,80116.0,0.04]
[1741888082301,0.1248235,80128.0,80124.0,0.062414]
[1741888082605,0.124829,80124.0,80123.0,0.24652]
[1741888082802,0.1248383,80118.0,80117.0,0.24612]
[1741888083006,0.1248383,80118.0,80117.0,0.28612]
[1741888083508,0.1497,80120.0,80112.0,0.001]
[1741888083808,0.1248461,80113.0,80112.0,0.001]
[1741888084014,0.0624207,80116.0,80110.0,0.1431]
[1741888084015,0.1248492,80111.0,80110.0,0.1431]
[1741888084713,0.27528521,80111.0,80110.0,0.1431]
[1741888085205,0.1248508,80110.0,80109.0,0.00018726]
[1741888085512,0.2745508,80110.0,80109.0,0.00018726]
[1741888086211,0.28906569,80110.0,80109.0,0.00018726]
[1741888086413,0.2745508,80110.0,80109.0,0.00018726]
[1741888087210,0.28620345,80110.0,80109.0,0.00018726]
[1741888087708,0.28620345,80110.0,80097.0,0.1248705]
[1741888087709,0.124867,80100.0,80097.0,0.38762]